Workbook

Sheet Summaries
A1: Program: | B1: Program Information: | C1: Data Analysis: | D1: Critical Reflection of Assessment Activities: | E1: Evaluation of Previous Plans: | F1: Planning:
A2: ADCT Comprehensive | B2: Summary: Exemplary - Used language from the college mission statement well-aligned with the College Mission, talks about how the program is important to the community, it even cites the Education Master Plan. Substantial examples were provided and the overall Program Information section was very clear and concise. | C2: Summary: Exemplary -Data analysis was detailed and included factors that impacted results through examination of disaggregated data examining differences between campus, gender, first generation and other factors. The data was separated into sections, including insight about why the changes happened and the factors that may have impacted student success. Explanations of factors within the Student Equity plan were clearly outlined and comprehensive analysis has been performed. PRC appreciates including the review of different campuses and what would happen if their program request is not given funding. | D2: Summary: Exemplary – The timeline of course offerings are shown including substantial amounts of assessment activity strongly integrated into program planning year-to-year. Outside factors such as regulatory changes and collaborative committee work through the Program Advisory Committee are also weighed in program planning. The specific narrative examples provided also paint a clear picture of the impact and importance of program changes, future planning and workforce needs. | E2: Summary: Exemplary – Even without prior plan in the PRC Template, it is easy to identify what the previous plans were based on the comprehensive updates. Complete plans have an explanation for what occurred and the results. Plans in progress explain what actions were carried out and what’s happening leading them to be In Progress/Not Started. | F2: Summary: Exemplary – Substantial evidence is provided to show past actions were carried out or an explanation exists as to why they have not been completed. All of the planning is, again – linked to the Education Master Plan, numbered and organized. Cohesive planning framework shows data and APs as well as integration of data.
A3: CIS Comprehensive | B3: Summary: Exemplary- Many specific and relevant examples of how the department aligns with the mission. Excellent references and examples to each of the bolded sections of the mission and how the program is having an impact in those areas. Reviewers noted the programs' efforts in collaborations with HCOE and businesses, increased growth of students in the program overall, and in all the metrics measuring overall student success. | C3: Summary: Exemplary: Authors provided many relevant numbers, percentages, and other data that demonstrated the increased demand for CIS graduates in the area of regional employment. Gave a good analysis of the growing numbers of completers in the program over the last four years. Reviewers appreciated how they spoke to the various support services, increased flexible modalities of course offerings and ISS support in assisting in building enrollment, academic success retention and completers. The program provided some insight on how they have worked to provide equitable resources to all campuses but also acknowledged what they need to try and do better to attract more female students and underrepresented groups to the field. | D3: Summary: Satisfactory - Authors described data highlighting progress but only provides raw numbers. Reviewers recommend authors describe those findings including narrative on a specific assessment that has been practiced by faculty that you believe has helped lead to these findings. The program's assessment findings' impact on planning for the future is well laid out and presented. Reviewers recommend the authors list a specific PLO/SLO assessment that was done that clearly aligns with some of these impacts on planning. | E3: Summary: Exemplary - The program provides detailed updates and specific examples of progress in each plan since their last comprehensive review. They did an excellent job in describing how plans have been modified or even abandoned due to changes in need and evolution of the discipline landscape. Reviewers appreciated that the authors described the iterative nature of changing the wording to a particular part of the plan when the landscape at CPH changed. | F3: Summary: Exemplary - Each plan explains it’s the clear alignment with Institutional goals and the Education Master Plan. The authors provide clear alignments to current and previous assessments that were made and helped inform these plans. Most notable was the direct impact or anticipated impact each plan will have on student success metrics. The reviewers appreciated the author’s effective discussion on planning. In the one case where resources were requested, they provided an example of the potential negative impacts on student engagement and loss of some hands-on skills that cannot be provided in textbooks. Reviewers recommend providing a specific tie to curricular requirements or meeting a specific PLO/CLO. This may be an area to explore other funding options to support this plan which extends beyond PLO/CLO. Consider highlighting the team’s participation in the program highlights.
A4: Physical Science Comprehensive | B4: Summary: Satisfactory: The review provides relevant details about how the program impacts the college and community or service areas. Details describing new hires, development of online and hybrid course modalities, and increased enrollment numbers are useful in evaluating the overall health of the program relative to pre-Covid circumstances. Program information could be more explicitly connected to the mission of the college. | C4: Summary: Satisfactory: Discussion of data is complete and some comparative comments regarding program or discipline changes are present. Factors impacting student achievement and learning are clearly stated. The mention of the sustained negative impact of fume hoods running during lectures is significant as a factor impacting student success (the information provided about the fume hoods is anecdotal rather than data-driven and could have been strengthened if it was supported by student experience surveys). Student equity data is discussed and there is some meaningful attention to the unusual trend in declining enrollment of Hispanic/Latino students but no analysis of why that might be the case. | D4: Summary: Satisfactory: Enough assessment activity has taken place such that the program can reflect on what it has learned. Program improvement is linked to assessment findings, which in this case mostly consists of student success data discussed in Section 2. Program authors note that there is a clear rationale for changing how assessment is conducted in chemistry (shifting from end-of-semester assessment to mid-semester assessment) so as to better capture data regarding student success rates. | E4: Summary: Exemplary: Past actions were carried out and evaluated, and their impact on program improvement is clearly described with relevant assessment and/or student achievement data. An action may not have occurred but there is an explanation as to why the action was not completed. | F4: Summary: Exemplary: Planning actions specifically and overtly link to stated institutional planning actions and are discussed. Planning actions are not stated as resource requests. Planning actions are clearly based on specific assessment and/or student achievement data findings. Actions clearly show the expected impact on the program and student success and can be measured.
A5: RN Comprehensive | B5: Summary: Developing- Needs more clarification on how it aligns with the college mission. Needs to include relevant details about how the program impacts the college and services areas. Need to relate to how it impacts CR students. | C5: Summary: Developing- Data was just listed with no discussion specific to each category. Little comparative analysis and mention of what impact this data had on the future direction of the program. | D5: Summary: Satisfactory- Enough assessment activity has taken place from multiple external sources but lacks data from IR. Program improvement is linked to assessment findings but not in a specific way or detailed explanations. If there was more detail linking future action to assessment results, this would have been Exemplary. | E5: Summary: Satisfactory- Impact of action is clear with some data; most plans are still in progress and what is complete does not have data for its impact. Could have done a better job at explaining how the plans were progressing and detailing any conversations that took place about this progress. | F5: Summary: Satisfactory/Development- Linked institutional planning. Planning actions, where appropriate, need to be clearly tied to assessment or student achievements. There needs to be more direct assessment details. Did not address adequately the third column referring to relating requests to specific course and program assessment dialogue to justify or support their plan.

Sheet Ranked Pivot
A3: Program | B3: Average Ranking
A4: ADCT
A5: Plan 1: Align program with AB-2473 mandates (to include the core competencies) and revise the program accordingly. | B5: 22.66666667
A6: Plan 2: Add 2 Full Time Faculty (N/A. This request belongs in the faculty prioritization process instead of PR.)
A7: Plan 3: Hire/Add Community Outreach & Field Education Coordinator | B7: 15.33333333
A8: Plan 4: Expand program and enrollment through development of fully online ADCT/SWHS pathways and a PBSP specific ADCT certificate pathway** and reinstating PBSP SWHS pathway | B8: 17.33333333
A9: Plan 5: Align program pathways with SW ADT** BSW - (Equity and opportunity) | B9: 18.66666667
A10: Plan 6: Increase student success support | B10: 10.33333333
A11: CIS
A12: Plan 1: CIS faculty will 1) analyze CIS post-covid enrollment trends** assessment data** and other supporting CIS IR data (including success** retention** fill rate** completers** persistence) and make practical** informed recommendations for individual course offerings in the modalit(ies) that promote the highest level of student equity** success** retention** and attainment of completers; 2) recommend timely revisions to upcoming schedules in areas where current offerings/modalities are not meeting or reflecting the needs of CIS students** are negatively impacting enrollments** and/or are hindering student accessibility; 3) work to ensure an accessible** near fully-online pathway exists for students to earn all CIS program completers. (In progress/multi-year plan) | B12: 16.66666667
A13: Plan 2: Partner with Cal Poly Humboldt and the CR Math Department to create articulating Data Science pathways** including a new Data Science ADT and Certificate of Achievement** with CIS programming** database** and Math courses as core requirements. | B13: 12.66666667
A14: Plan 3: Collaborate with HCOE and local high schools to develop dual enrollment program(s) that allow students to earn CIS credits prior to K-12 graduation. (In progress/multi-year plan) | B14: 15.66666667
A15: Plan 4: Phase in a newer set of repair PCs and upgrade to current Windows 11 operating system to ensure students can demonstrate course and program learning outcomes aligned with industry standards and certification requirements; e-waste legacy equipment. (New plan/not started) | B15: 16.66666667
A16: Plan 5: Provide access to innovative and hands-on curriculum. (Previous Plan/Not started) | B16: 15.33333333
A17: Plan 6: Provide off-campus access to innovative instructional and assessment tools that support an equitable online learning environment and students’ obtainment of course and program learning outcomes in online classes. (Revised in progress plan) | B17: 17
A18: Physical Science Comprehensive
A19: Plan 1: Explore a preparatory class for Chem 2 | B19: 15
A20: Plan 2: Explore development of an associate degree for transfer in chemistry | B20: 13
A21: Plan 3: Explore the need to run fume hoods continuously | B21: 8.666666667
A22: Plan 4: Develop additional GE Science classes that can be offered at PB to expand offerings and open the door for students to earn the beneficial Science Exploration degree. | B22: 10
A23: Plan 5: Improve student learning related to quantum physics and its applications. Specifically** CLO#5 from PHYS-2B and CLO#4 from PHYS-4C assessments identify the need for improvement that could be achieved by developing new lab activities that see application of quantum principles and the related mathematics. Quantum physics also comes up in PHYS-10 and is part of the course outcomes** which would likely benefit as ell from resources that improve the outcomes in the more advanced classes. | B23: 8
A24: Plan 6: Maintain existing labs in Physics 2A** 2B** 4A** 4B** & 4C. This year we'd like to emphasize some of the labs in 2A and 4A that need some replacement parts. | B24: 8
A25: RN Comprehensive
A26: Plan 1: RN Program Curriculum Revision | B26: 15.33333333
A27: Plan 2: Simulation training all full time staff and some associate staff | B27: 12
A28: Plan 3: ACEN accreditation | B28: 11
A29: Plan 4: ISS/SIMS tech hours increase to full time. | B29: 10
A30: Plan 5: Scheduler/Clinical site coordinator is needed as full time College of The Redwoods staff so that this position is not interrupted if bases on Grant Funding Availability. | B30: 8.333333333
A31: Plan 6: Full time additional office coordinator/ support staff. | B31: 6

Sheet Plan Ranking (hidden)
A1: Average | B1: Criteria | C1: Reviewer 1 | D1: Reviewer 2 | E1: Reviewer 3 | F1: Program | G1: Plan and description
B2: Reviewer | C2: Colin Trujillo | D2: Kelly | E2: Tory | F2: ADCT | G2: Plan 1: Align program with AB-2473 mandates (to include the core competencies) and revise the program accordingly.
B3: Alignment with an Institutional Goal or Institutional Objective (0***5) | C3: 5 | D3: 5 | E3: 5 | F3: ADCT | G3: Plan 1: Align program with AB-2473 mandates (to include the core competencies) and revise the program accordingly.
B4: Identified as a need based on assessment outcome(s) (0***5) | C4: 5 | D4: 5 | E4: 5 | F4: ADCT | G4: Plan 1: Align program with AB-2473 mandates (to include the core competencies) and revise the program accordingly.
B5: Ranking by Program Review Authors (0***5) | C5: 5 | D5: 5 | E5: 5 | F5: ADCT | G5: Plan 1: Align program with AB-2473 mandates (to include the core competencies) and revise the program accordingly.
B6: Number of students affected (0***3) | C6: 2 | D6: 3 | E6: 2 | F6: ADCT | G6: Plan 1: Align program with AB-2473 mandates (to include the core competencies) and revise the program accordingly.
B7: Meets a safety or legislated mandate (0***3) | C7: 3 | D7: 3 | E7: 3 | F7: ADCT | G7: Plan 1: Align program with AB-2473 mandates (to include the core competencies) and revise the program accordingly.
B8: Criticality of the request (0***3) | C8: 2 | D8: 3 | E8: 2 | F8: ADCT | G8: Plan 1: Align program with AB-2473 mandates (to include the core competencies) and revise the program accordingly.
B9: Total (0***24) | C9: 22 | D9: 24 | E9: 22 | F9: ADCT | G9: Plan 1: Align program with AB-2473 mandates (to include the core competencies) and revise the program accordingly.
A10: =C10 -> 22.66666667 | B10: Average: | C10: =AVERAGE(C9:E9) -> 22.66666667 | F10: ADCT | G10: Plan 1: Align program with AB-2473 mandates (to include the core competencies) and revise the program accordingly.
F11: ADCT | G11: Plan 1: Align program with AB-2473 mandates (to include the core competencies) and revise the program accordingly.
F12: ADCT | G12: Plan 1: Align program with AB-2473 mandates (to include the core competencies) and revise the program accordingly.
F13: ADCT | G13: Plan 1: Align program with AB-2473 mandates (to include the core competencies) and revise the program accordingly.
F14: ADCT | G14: Plan 1: Align program with AB-2473 mandates (to include the core competencies) and revise the program accordingly.
B15: Reviewer | C15: Colin Trujillo | D15: Kelly | E15: Tory | F15: ADCT | G15: Plan 2: Add 2 Full Time Faculty
B16: Alignment with an Institutional Goal or Institutional Objective (0***5) | F16: ADCT | G16: Plan 2: Add 2 Full Time Faculty
B17: Identified as a need based on assessment outcome(s) (0***5) | F17: ADCT | G17: Plan 2: Add 2 Full Time Faculty
B18: Ranking by Program Review Authors (0***5) | F18: ADCT | G18: Plan 2: Add 2 Full Time Faculty
B19: Number of students affected (0***3) | F19: ADCT | G19: Plan 2: Add 2 Full Time Faculty
B20: Meets a safety or legislated mandate (0***3) | F20: ADCT | G20: Plan 2: Add 2 Full Time Faculty
B21: Criticality of the request (0***3) | F21: ADCT | G21: Plan 2: Add 2 Full Time Faculty
B22: Total (0***24) | F22: ADCT | G22: Plan 2: Add 2 Full Time Faculty
A23: =C23 -> N/A. This request belongs in the faculty prioritization process instead of PR. | B23: Average: | C23: N/A. This request belongs in the faculty prioritization process instead of PR. | F23: ADCT | G23: Plan 2: Add 2 Full Time Faculty
F24: ADCT | G24: Plan 2: Add 2 Full Time Faculty
F25: ADCT | G25: Plan 2: Add 2 Full Time Faculty
F26: ADCT | G26: Plan 2: Add 2 Full Time Faculty
F27: ADCT | G27: Plan 2: Add 2 Full Time Faculty
B28: Reviewer | C28: Colin Trujillo | D28: Kelly | E28: Tory | F28: ADCT | G28: Plan 3: Hire/Add Community Outreach & Field Education Coordinator
B29: Alignment with an Institutional Goal or Institutional Objective (0***5) | C29: 5 | D29: 4 | E29: 5 | F29: ADCT | G29: Plan 3: Hire/Add Community Outreach & Field Education Coordinator
B30: Identified as a need based on assessment outcome(s) (0***5) | C30: 4 | D30: 3 | E30: 4 | F30: ADCT | G30: Plan 3: Hire/Add Community Outreach & Field Education Coordinator
B31: Ranking by Program Review Authors (0***5) | C31: 3 | D31: 3 | E31: 3 | F31: ADCT | G31: Plan 3: Hire/Add Community Outreach & Field Education Coordinator
B32: Number of students affected (0***3) | C32: 1 | D32: 3*** 12.6***16 Completers/yr /DN and other campuses mentioned in assessment analysis where enrollment is lower | E32: 1 | F32: ADCT | G32: Plan 3: Hire/Add Community Outreach & Field Education Coordinator
B33: Meets a safety or legislated mandate (0***3) | C33: 0 | D33: 0 | E33: 0 | F33: ADCT | G33: Plan 3: Hire/Add Community Outreach & Field Education Coordinator
B34: Criticality of the request (0***3) | C34: 2 | D34: 3 | E34: 2 | F34: ADCT | G34: Plan 3: Hire/Add Community Outreach & Field Education Coordinator
B35: Total (0***24) | C35: 15 | D35: 16 | E35: 15 | F35: ADCT | G35: Plan 3: Hire/Add Community Outreach & Field Education Coordinator
A36: 15.33333333 | B36: Average: | C36: =AVERAGE(C35:E35) -> 15.33333333 | F36: ADCT | G36: Plan 3: Hire/Add Community Outreach & Field Education Coordinator
F37: ADCT | G37: Plan 3: Hire/Add Community Outreach & Field Education Coordinator
F38: ADCT | G38: Plan 3: Hire/Add Community Outreach & Field Education Coordinator
F39: ADCT | G39: Plan 3: Hire/Add Community Outreach & Field Education Coordinator
F40: ADCT | G40: Plan 3: Hire/Add Community Outreach & Field Education Coordinator
B41: Reviewer | C41: Colin Trujillo | D41: Kelly | E41: Tory | F41: ADCT | G41: Plan 4: Expand program and enrollment through development of fully online ADCT/SWHS pathways and a PBSP specific ADCT certificate pathway** and reinstating PBSP SWHS pathway
B42: Alignment with an Institutional Goal or Institutional Objective (0***5) | C42: 5 | D42: 5 | E42: 5 | F42: ADCT | G42: Plan 4: Expand program and enrollment through development of fully online ADCT/SWHS pathways and a PBSP specific ADCT certificate pathway** and reinstating PBSP SWHS pathway
B43: Identified as a need based on assessment outcome(s) (0***5) | C43: 5 | D43: 5 | E43: 5 | F43: ADCT | G43: Plan 4: Expand program and enrollment through development of fully online ADCT/SWHS pathways and a PBSP specific ADCT certificate pathway** and reinstating PBSP SWHS pathway
B44: Ranking by Program Review Authors (0***5) | C44: 2 | D44: 2 | E44: 2 | F44: ADCT | G44: Plan 4: Expand program and enrollment through development of fully online ADCT/SWHS pathways and a PBSP specific ADCT certificate pathway** and reinstating PBSP SWHS pathway
B45: Number of students affected (0***3) | C45: 2 | D45: 3 – PB enrollment | E45: 2 | F45: ADCT | G45: Plan 4: Expand program and enrollment through development of fully online ADCT/SWHS pathways and a PBSP specific ADCT certificate pathway** and reinstating PBSP SWHS pathway
B46: Meets a safety or legislated mandate (0***3) | C46: 0 | D46: 0 | E46: 0 | F46: ADCT | G46: Plan 4: Expand program and enrollment through development of fully online ADCT/SWHS pathways and a PBSP specific ADCT certificate pathway** and reinstating PBSP SWHS pathway
B47: Criticality of the request (0***3) | C47: 3 | D47: 3 | E47: 3 | F47: ADCT | G47: Plan 4: Expand program and enrollment through development of fully online ADCT/SWHS pathways and a PBSP specific ADCT certificate pathway** and reinstating PBSP SWHS pathway
B48: Total (0***24) | C48: 17 | D48: 18 | E48: 17 | F48: ADCT | G48: Plan 4: Expand program and enrollment through development of fully online ADCT/SWHS pathways and a PBSP specific ADCT certificate pathway** and reinstating PBSP SWHS pathway
A49: 17.33333333 | B49: Average: | C49: =AVERAGE(C48:E48) -> 17.33333333 | F49: ADCT | G49: Plan 4: Expand program and enrollment through development of fully online ADCT/SWHS pathways and a PBSP specific ADCT certificate pathway** and reinstating PBSP SWHS pathway
F50: ADCT | G50: Plan 4: Expand program and enrollment through development of fully online ADCT/SWHS pathways and a PBSP specific ADCT certificate pathway** and reinstating PBSP SWHS pathway
F51: ADCT | G51: Plan 4: Expand program and enrollment through development of fully online ADCT/SWHS pathways and a PBSP specific ADCT certificate pathway** and reinstating PBSP SWHS pathway
F52: ADCT | G52: Plan 4: Expand program and enrollment through development of fully online ADCT/SWHS pathways and a PBSP specific ADCT certificate pathway** and reinstating PBSP SWHS pathway
F53: ADCT | G53: Plan 4: Expand program and enrollment through development of fully online ADCT/SWHS pathways and a PBSP specific ADCT certificate pathway** and reinstating PBSP SWHS pathway
B54: Reviewer | C54: Colin Trujillo | D54: Kelly | E54: Tory | F54: ADCT | G54: Plan 5: Align program pathways with SW ADT** BSW - (Equity and opportunity)
B55: Alignment with an Institutional Goal or Institutional Objective (0***5) | C55: 5 | D55: 5 | E55: 5 | F55: ADCT | G55: Plan 5: Align program pathways with SW ADT** BSW - (Equity and opportunity)
B56: Identified as a need based on assessment outcome(s) (0***5) | C56: 5 | D56: 5 | E56: 5 | F56: ADCT | G56: Plan 5: Align program pathways with SW ADT** BSW - (Equity and opportunity)
B57: Ranking by Program Review Authors (0***5) | C57: 1 | D57: 1 | E57: 1 | F57: ADCT | G57: Plan 5: Align program pathways with SW ADT** BSW - (Equity and opportunity)
B58: Number of students affected (0***3) | C58: 2 | D58: 3***Districtwide, the opportunity impacts all students | E58: 2 | F58: ADCT | G58: Plan 5: Align program pathways with SW ADT** BSW - (Equity and opportunity)
B59: Meets a safety or legislated mandate (0***3) | C59: 3 | D59: 3 | E59: 3 | F59: ADCT | G59: Plan 5: Align program pathways with SW ADT** BSW - (Equity and opportunity)
B60: Criticality of the request (0***3) | C60: 2 | D60: 3 | E60: 2 | F60: ADCT | G60: Plan 5: Align program pathways with SW ADT** BSW - (Equity and opportunity)
B61: Total (0***24) | C61: 18 | D61: 20 | E61: 18 | F61: ADCT | G61: Plan 5: Align program pathways with SW ADT** BSW - (Equity and opportunity)
A62: 18.66666667 | B62: Average: | C62: =AVERAGE(C61:E61) -> 18.66666667 | F62: ADCT | G62: Plan 5: Align program pathways with SW ADT** BSW - (Equity and opportunity)
F63: ADCT | G63: Plan 5: Align program pathways with SW ADT** BSW - (Equity and opportunity)
F64: ADCT | G64: Plan 5: Align program pathways with SW ADT** BSW - (Equity and opportunity)
F65: ADCT | G65: Plan 5: Align program pathways with SW ADT** BSW - (Equity and opportunity)
F66: ADCT | G66: Plan 5: Align program pathways with SW ADT** BSW - (Equity and opportunity)
B67: Reviewer | C67: Colin Trujillo | D67: Kelly | E67: Tory | F67: ADCT | G67: Plan 6: Increase student success support
B68: Alignment with an Institutional Goal or Institutional Objective (0***5) | C68: 5 | D68: 5 | E68: 5 | F68: ADCT | G68: Plan 6: Increase student success support
B69: Identified as a need based on assessment outcome(s) (0***5) | C69: 3 | D69: 3 | E69: 3 | F69: ADCT | G69: Plan 6: Increase student success support
B70: Ranking by Program Review Authors (0***5) | C70: 0 | D70: 0 | E70: 0 | F70: ADCT | G70: Plan 6: Increase student success support
B71: Number of students affected (0***3) | C71: 1 | D71: 2 | E71: 1 | F71: ADCT | G71: Plan 6: Increase student success support
B72: Meets a safety or legislated mandate (0***3) | C72: 0 | D72: 0 | E72: 0 | F72: ADCT | G72: Plan 6: Increase student success support
B73: Criticality of the request (0***3) | C73: 1 | D73: 1 | E73: 1 | F73: ADCT | G73: Plan 6: Increase student success support
B74: Total (0***24) | C74: 10 | D74: 11 | E74: 10 | F74: ADCT | G74: Plan 6: Increase student success support
A75: =C75 -> 10.33333333 | B75: Average: | C75: =AVERAGE(C74:E74) -> 10.33333333 | F75: ADCT | G75: Plan 6: Increase student success support
F76: ADCT | G76: Plan 6: Increase student success support
F77: ADCT | G77: Plan 6: Increase student success support
F78: ADCT | G78: Plan 6: Increase student success support
F79: ADCT | G79: Plan 6: Increase student success support
B80: Reviewer | C80: Bob | D80: Amy | E80: Elder | F80: CIS | G80: Plan 1: CIS faculty will 1) analyze CIS post-covid enrollment trends** assessment data** and other supporting CIS IR data (including success** retention** fill rate** completers** persistence) and make practical** informed recommendations for individual course offerings in the modalit(ies) that promote the highest level of student equity** success** retention** and attainment of completers; 2) recommend timely revisions to upcoming schedules in areas where current offerings/modalities are not meeting or reflecting the needs of CIS students** are negatively impacting enrollments** and/or are hindering student accessibility; 3) work to ensure an accessible** near fully-online pathway exists for students to earn all CIS program completers. (In progress/multi-year plan)
B81: Alignment with an Institutional Goal or Institutional Objective (0***5) | C81: 5 | D81: 5 | E81: 5 | F81: CIS | G81: Plan 1: CIS faculty will 1) analyze CIS post-covid enrollment trends** assessment data** and other supporting CIS IR data (including success** retention** fill rate** completers** persistence) and make practical** informed recommendations for individual course offerings in the modalit(ies) that promote the highest level of student equity** success** retention** and attainment of completers; 2) recommend timely revisions to upcoming schedules in areas where current offerings/modalities are not meeting or reflecting the needs of CIS students** are negatively impacting enrollments** and/or are hindering student accessibility; 3) work to ensure an accessible** near fully-online pathway exists for students to earn all CIS program completers. (In progress/multi-year plan)
B82: Identified as a need based on assessment outcome(s) (0***5) | C82: 5 | D82: 5 | E82: 5 | F82: CIS | G82: Plan 1: CIS faculty will 1) analyze CIS post-covid enrollment trends** assessment data** and other supporting CIS IR data (including success** retention** fill rate** completers** persistence) and make practical** informed recommendations for individual course offerings in the modalit(ies) that promote the highest level of student equity** success** retention** and attainment of completers; 2) recommend timely revisions to upcoming schedules in areas where current offerings/modalities are not meeting or reflecting the needs of CIS students** are negatively impacting enrollments** and/or are hindering student accessibility; 3) work to ensure an accessible** near fully-online pathway exists for students to earn all CIS program completers. (In progress/multi-year plan)
B83: Ranking by Program Review Authors (0***5) | C83: 5 | D83: 4 | E83: 4 | F83: CIS | G83: Plan 1: CIS faculty will 1) analyze CIS post-covid enrollment trends** assessment data** and other supporting CIS IR data (including success** retention** fill rate** completers** persistence) and make practical** informed recommendations for individual course offerings in the modalit(ies) that promote the highest level of student equity** success** retention** and attainment of completers; 2) recommend timely revisions to upcoming schedules in areas where current offerings/modalities are not meeting or reflecting the needs of CIS students** are negatively impacting enrollments** and/or are hindering student accessibility; 3) work to ensure an accessible** near fully-online pathway exists for students to earn all CIS program completers. (In progress/multi-year plan)
B84: Number of students affected (0***3) | C84: 3 | D84: 2 | E84: 2 | F84: CIS | G84: Plan 1: CIS faculty will 1) analyze CIS post-covid enrollment trends** assessment data** and other supporting CIS IR data (including success** retention** fill rate** completers** persistence) and make practical** informed recommendations for individual course offerings in the modalit(ies) that promote the highest level of student equity** success** retention** and attainment of completers; 2) recommend timely revisions to upcoming schedules in areas where current offerings/modalities are not meeting or reflecting the needs of CIS students** are negatively impacting enrollments** and/or are hindering student accessibility; 3) work to ensure an accessible** near fully-online pathway exists for students to earn all CIS program completers. (In progress/multi-year plan)
B85: Meets a safety or legislated mandate (0***3) | C85: N/A | D85: NA | E85: N/A | F85: CIS | G85: Plan 1: CIS faculty will 1) analyze CIS post-covid enrollment trends** assessment data** and other supporting CIS IR data (including success** retention** fill rate** completers** persistence) and make practical** informed recommendations for individual course offerings in the modalit(ies) that promote the highest level of student equity** success** retention** and attainment of completers; 2) recommend timely revisions to upcoming schedules in areas where current offerings/modalities are not meeting or reflecting the needs of CIS students** are negatively impacting enrollments** and/or are hindering student accessibility; 3) work to ensure an accessible** near fully-online pathway exists for students to earn all CIS program completers. (In progress/multi-year plan)
B86: Criticality of the request (0***3) | C86: N/A | D86: NA | E86: N/A | F86: CIS | G86: Plan 1: CIS faculty will 1) analyze CIS post-covid enrollment trends** assessment data** and other supporting CIS IR data (including success** retention** fill rate** completers** persistence) and make practical** informed recommendations for individual course offerings in the modalit(ies) that promote the highest level of student equity** success** retention** and attainment of completers; 2) recommend timely revisions to upcoming schedules in areas where current offerings/modalities are not meeting or reflecting the needs of CIS students** are negatively impacting enrollments** and/or are hindering student accessibility; 3) work to ensure an accessible** near fully-online pathway exists for students to earn all CIS program completers. (In progress/multi-year plan)
B87: Total (0***24) | C87: 18 | D87: 16 | E87: 16 | F87: CIS | G87: Plan 1: CIS faculty will 1) analyze CIS post-covid enrollment trends** assessment data** and other supporting CIS IR data (including success** retention** fill rate** completers** persistence) and make practical** informed recommendations for individual course offerings in the modalit(ies) that promote the highest level of student equity** success** retention** and attainment of completers; 2) recommend timely revisions to upcoming schedules in areas where current offerings/modalities are not meeting or reflecting the needs of CIS students** are negatively impacting enrollments** and/or are hindering student accessibility; 3) work to ensure an accessible** near fully-online pathway exists for students to earn all CIS program completers. (In progress/multi-year plan)
A88: 16.66666667 | B88: Average: | C88: =AVERAGE(C87:E87) -> 16.66666667 | F88: CIS | G88: Plan 1: CIS faculty will 1) analyze CIS post-covid enrollment trends** assessment data** and other supporting CIS IR data (including success** retention** fill rate** completers** persistence) and make practical** informed recommendations for individual course offerings in the modalit(ies) that promote the highest level of student equity** success** retention** and attainment of completers; 2) recommend timely revisions to upcoming schedules in areas where current offerings/modalities are not meeting or reflecting the needs of CIS students** are negatively impacting enrollments** and/or are hindering student accessibility; 3) work to ensure an accessible** near fully-online pathway exists for students to earn all CIS program completers. (In progress/multi-year plan)
F89: CIS | G89: Plan 1: CIS faculty will 1) analyze CIS post-covid enrollment trends** assessment data** and other supporting CIS IR data (including success** retention** fill rate** completers** persistence) and make practical** informed recommendations for individual course offerings in the modalit(ies) that promote the highest level of student equity** success** retention** and attainment of completers; 2) recommend timely revisions to upcoming schedules in areas where current offerings/modalities are not meeting or reflecting the needs of CIS students** are negatively impacting enrollments** and/or are hindering student accessibility; 3) work to ensure an accessible** near fully-online pathway exists for students to earn all CIS program completers. (In progress/multi-year plan)
F90: CIS | G90: Plan 1: CIS faculty will 1) analyze CIS post-covid enrollment trends** assessment data** and other supporting CIS IR data (including success** retention** fill rate** completers** persistence) and make practical** informed recommendations for individual course offerings in the modalit(ies) that promote the highest level of student equity** success** retention** and attainment of completers; 2) recommend timely revisions to upcoming schedules in areas where current offerings/modalities are not meeting or reflecting the needs of CIS students** are negatively impacting enrollments** and/or are hindering student accessibility; 3) work to ensure an accessible** near fully-online pathway exists for students to earn all CIS program completers. (In progress/multi-year plan)
F91: CIS | G91: Plan 1: CIS faculty will 1) analyze CIS post-covid enrollment trends** assessment data** and other supporting CIS IR data (including success** retention** fill rate** completers** persistence) and make practical** informed recommendations for individual course offerings in the modalit(ies) that promote the highest level of student equity** success** retention** and attainment of completers; 2) recommend timely revisions to upcoming schedules in areas where current offerings/modalities are not meeting or reflecting the needs of CIS students** are negatively impacting enrollments** and/or are hindering student accessibility; 3) work to ensure an accessible** near fully-online pathway exists for students to earn all CIS program completers. (In progress/multi-year plan)
F92: CIS | G92: Plan 1: CIS faculty will 1) analyze CIS post-covid enrollment trends** assessment data** and other supporting CIS IR data (including success** retention** fill rate** completers** persistence) and make practical** informed recommendations for individual course offerings in the modalit(ies) that promote the highest level of student equity** success** retention** and attainment of completers; 2) recommend timely revisions to upcoming schedules in areas where current offerings/modalities are not meeting or reflecting the needs of CIS students** are negatively impacting enrollments** and/or are hindering student accessibility; 3) work to ensure an accessible** near fully-online pathway exists for students to earn all CIS program completers. (In progress/multi-year plan)
B93: Reviewer | C93: Bob | D93: Amy | E93: Elder | F93: CIS | G93: Plan 2: Partner with Cal Poly Humboldt and the CR Math Department to create articulating Data Science pathways** including a new Data Science ADT and Certificate of Achievement** with CIS programming** database** and Math courses as core requirements.
B94: Alignment with an Institutional Goal or Institutional Objective (0***5) | C94: 5 | D94: 5 | E94: 5 | F94: CIS | G94: Plan 2: Partner with Cal Poly Humboldt and the CR Math Department to create articulating Data Science pathways** including a new Data Science ADT and Certificate of Achievement** with CIS programming** database** and Math courses as core requirements.
B95: Identified as a need based on assessment outcome(s) (0***5) | C95: 3 | D95: 3 | E95: 3 | F95: CIS | G95: Plan 2: Partner with Cal Poly Humboldt and the CR Math Department to create articulating Data Science pathways** including a new Data Science ADT and Certificate of Achievement** with CIS programming** database** and Math courses as core requirements.
B96: Ranking by Program Review Authors (0***5) | C96: 3 | D96: 3 | E96: 3 | F96: CIS | G96: Plan 2: Partner with Cal Poly Humboldt and the CR Math Department to create articulating Data Science pathways** including a new Data Science ADT and Certificate of Achievement** with CIS programming** database** and Math courses as core requirements.
B97: Number of students affected (0***3) | C97: 2 | D97: 1 | E97: 2 | F97: CIS | G97: Plan 2: Partner with Cal Poly Humboldt and the CR Math Department to create articulating Data Science pathways** including a new Data Science ADT and Certificate of Achievement** with CIS programming** database** and Math courses as core requirements.
B98: Meets a safety or legislated mandate (0***3) | C98: N/A | D98: NA | E98: N/A | F98: CIS | G98: Plan 2: Partner with Cal Poly Humboldt and the CR Math Department to create articulating Data Science pathways** including a new Data Science ADT and Certificate of Achievement** with CIS programming** database** and Math courses as core requirements.
B99: Criticality of the request (0***3) | C99: N/A | D99: NA | E99: N/A | F99: CIS | G99: Plan 2: Partner with Cal Poly Humboldt and the CR Math Department to create articulating Data Science pathways** including a new Data Science ADT and Certificate of Achievement** with CIS programming** database** and Math courses as core requirements.
B100: Total (0***24) | C100: 13 | D100: 12 | E100: 13 | F100: CIS | G100: Plan 2: Partner with Cal Poly Humboldt and the CR Math Department to create articulating Data Science pathways** including a new Data Science ADT and Certificate of Achievement** with CIS programming** database** and Math courses as core requirements.
A101: 12.66666667 | B101: Average: | C101: =AVERAGE(C100:E100) -> 12.66666667 | F101: CIS | G101: Plan 2: Partner with Cal Poly Humboldt and the CR Math Department to create articulating Data Science pathways** including a new Data Science ADT and Certificate of Achievement** with CIS programming** database** and Math courses as core requirements.
F102: CIS | G102: Plan 2: Partner with Cal Poly Humboldt and the CR Math Department to create articulating Data Science pathways** including a new Data Science ADT and Certificate of Achievement** with CIS programming** database** and Math courses as core requirements.
F103: CIS | G103: Plan 2: Partner with Cal Poly Humboldt and the CR Math Department to create articulating Data Science pathways** including a new Data Science ADT and Certificate of Achievement** with CIS programming** database** and Math courses as core requirements.
F104: CIS | G104: Plan 2: Partner with Cal Poly Humboldt and the CR Math Department to create articulating Data Science pathways** including a new Data Science ADT and Certificate of Achievement** with CIS programming** database** and Math courses as core requirements.
F105: CIS | G105: Plan 2: Partner with Cal Poly Humboldt and the CR Math Department to create articulating Data Science pathways** including a new Data Science ADT and Certificate of Achievement** with CIS programming** database** and Math courses as core requirements.
B106: Reviewer | C106: Bob | D106: Amy | E106: Elder | F106: CIS | G106: Plan 3: Collaborate with HCOE and local high schools to develop dual enrollment program(s) that allow students to earn CIS credits prior to K-12 graduation. (In progress/multi-year plan)
B107: Alignment with an Institutional Goal or Institutional Objective (0***5) | C107: 5 | D107: 5 | E107: 5 | F107: CIS | G107: Plan 3: Collaborate with HCOE and local high schools to develop dual enrollment program(s) that allow students to earn CIS credits prior to K-12 graduation. (In progress/multi-year plan)
B108: Identified as a need based on assessment outcome(s) (0***5) | C108: 3 | D108: 3 | E108: 3 | F108: CIS | G108: Plan 3: Collaborate with HCOE and local high schools to develop dual enrollment program(s) that allow students to earn CIS credits prior to K-12 graduation. (In progress/multi-year plan)
B109: Ranking by Program Review Authors (0***5) | C109: 4 | D109: 4 | E109: 4 | F109: CIS | G109: Plan 3: Collaborate with HCOE and local high schools to develop dual enrollment program(s) that allow students to earn CIS credits prior to K-12 graduation. (In progress/multi-year plan)
B110: Number of students affected (0***3) | C110: 1 | D110: 2 | E110: 2 | F110: CIS | G110: Plan 3: Collaborate with HCOE and local high schools to develop dual enrollment program(s) that allow students to earn CIS credits prior to K-12 graduation. (In progress/multi-year plan)
B111: Meets a safety or legislated mandate (0***3) | C111: 2 | D111: 2 | E111: 2 | F111: CIS | G111: Plan 3: Collaborate with HCOE and local high schools to develop dual enrollment program(s) that allow students to earn CIS credits prior to K-12 graduation. (In progress/multi-year plan)
B112: Criticality of the request (0***3) | C112: N/A | D112: NA | E112: N/A | F112: CIS | G112: Plan 3: Collaborate with HCOE and local high schools to develop dual enrollment program(s) that allow students to earn CIS credits prior to K-12 graduation. (In progress/multi-year plan)
B113: Total (0***24) | C113: 15 | D113: 16 | E113: 16 | F113: CIS | G113: Plan 3: Collaborate with HCOE and local high schools to develop dual enrollment program(s) that allow students to earn CIS credits prior to K-12 graduation. (In progress/multi-year plan)
A114: 15.66666667 | B114: Average: | C114: =AVERAGE(C113:E113) -> 15.66666667 | F114: CIS | G114: Plan 3: Collaborate with HCOE and local high schools to develop dual enrollment program(s) that allow students to earn CIS credits prior to K-12 graduation. (In progress/multi-year plan)
F115: CIS | G115: Plan 3: Collaborate with HCOE and local high schools to develop dual enrollment program(s) that allow students to earn CIS credits prior to K-12 graduation. (In progress/multi-year plan)
F116: CIS | G116: Plan 3: Collaborate with HCOE and local high schools to develop dual enrollment program(s) that allow students to earn CIS credits prior to K-12 graduation. (In progress/multi-year plan)
F117: CIS | G117: Plan 3: Collaborate with HCOE and local high schools to develop dual enrollment program(s) that allow students to earn CIS credits prior to K-12 graduation. (In progress/multi-year plan)
F118: CIS | G118: Plan 3: Collaborate with HCOE and local high schools to develop dual enrollment program(s) that allow students to earn CIS credits prior to K-12 graduation. (In progress/multi-year plan)
B119: Reviewer | C119: Bob | D119: Amy | E119: Elder | F119: CIS | G119: Plan 4: Phase in a newer set of repair PCs and upgrade to current Windows 11 operating system to ensure students can demonstrate course and program learning outcomes aligned with industry standards and certification requirements; e-waste legacy equipment. (New plan/not started)
B120: Alignment with an Institutional Goal or Institutional Objective (0***5) | C120: 5 | D120: 5 | E120: 5 | F120: CIS | G120: Plan 4: Phase in a newer set of repair PCs and upgrade to current Windows 11 operating system to ensure students can demonstrate course and program learning outcomes aligned with industry standards and certification requirements; e-waste legacy equipment. (New plan/not started)
B121: Identified as a need based on assessment outcome(s) (0***5) | C121: 5 | D121: 5 | E121: 5 | F121: CIS | G121: Plan 4: Phase in a newer set of repair PCs and upgrade to current Windows 11 operating system to ensure students can demonstrate course and program learning outcomes aligned with industry standards and certification requirements; e-waste legacy equipment. (New plan/not started)
B122: Ranking by Program Review Authors (0***5) | C122: 4 | D122: 2 | E122: 4 | F122: CIS | G122: Plan 4: Phase in a newer set of repair PCs and upgrade to current Windows 11 operating system to ensure students can demonstrate course and program learning outcomes aligned with industry standards and certification requirements; e-waste legacy equipment. (New plan/not started)
B123: Number of students affected (0***3) | C123: 3 | D123: 1 (n=65 PCs) | E123: 2 | F123: CIS | G123: Plan 4: Phase in a newer set of repair PCs and upgrade to current Windows 11 operating system to ensure students can demonstrate course and program learning outcomes aligned with industry standards and certification requirements; e-waste legacy equipment. (New plan/not started)
B124: Meets a safety or legislated mandate (0***3) | C124: N/A | D124: NA | E124: N/A | F124: CIS | G124: Plan 4: Phase in a newer set of repair PCs and upgrade to current Windows 11 operating system to ensure students can demonstrate course and program learning outcomes aligned with industry standards and certification requirements; e-waste legacy equipment. (New plan/not started)
B125: Criticality of the request (0***3) | C125: N/A | D125: 2 | E125: 2 | F125: CIS | G125: Plan 4: Phase in a newer set of repair PCs and upgrade to current Windows 11 operating system to ensure students can demonstrate course and program learning outcomes aligned with industry standards and certification requirements; e-waste legacy equipment. (New plan/not started)
B126: Total (0***24) | C126: 17 | D126: 15 | E126: 18 | F126: CIS | G126: Plan 4: Phase in a newer set of repair PCs and upgrade to current Windows 11 operating system to ensure students can demonstrate course and program learning outcomes aligned with industry standards and certification requirements; e-waste legacy equipment. (New plan/not started)
A127: 16.66666667 | B127: Average: | C127: =AVERAGE(C126:E126) -> 16.66666667 | F127: CIS | G127: Plan 4: Phase in a newer set of repair PCs and upgrade to current Windows 11 operating system to ensure students can demonstrate course and program learning outcomes aligned with industry standards and certification requirements; e-waste legacy equipment. (New plan/not started)
F128: CIS | G128: Plan 4: Phase in a newer set of repair PCs and upgrade to current Windows 11 operating system to ensure students can demonstrate course and program learning outcomes aligned with industry standards and certification requirements; e-waste legacy equipment. (New plan/not started)
F129: CIS | G129: Plan 4: Phase in a newer set of repair PCs and upgrade to current Windows 11 operating system to ensure students can demonstrate course and program learning outcomes aligned with industry standards and certification requirements; e-waste legacy equipment. (New plan/not started)
F130: CIS | G130: Plan 4: Phase in a newer set of repair PCs and upgrade to current Windows 11 operating system to ensure students can demonstrate course and program learning outcomes aligned with industry standards and certification requirements; e-waste legacy equipment. (New plan/not started)
F131: CIS | G131: Plan 4: Phase in a newer set of repair PCs and upgrade to current Windows 11 operating system to ensure students can demonstrate course and program learning outcomes aligned with industry standards and certification requirements; e-waste legacy equipment. (New plan/not started)
B132: Reviewer | C132: Bob | D132: Amy | E132: Elder | F132: CIS | G132: Plan 5: Provide access to innovative and hands-on curriculum. (Previous Plan/Not started)
B133: Alignment with an Institutional Goal or Institutional Objective (0***5) | C133: 4 | D133: 5 | E133: 5 | F133: CIS | G133: Plan 5: Provide access to innovative and hands-on curriculum. (Previous Plan/Not started)
B134: Identified as a need based on assessment outcome(s) (0***5) | C134: 3 | D134: 2 | E134: 3 | F134: CIS | G134: Plan 5: Provide access to innovative and hands-on curriculum. (Previous Plan/Not started)
B135: Ranking by Program Review Authors (0***5) | C135: 3 | D135: 2 | E135: 3 | F135: CIS | G135: Plan 5: Provide access to innovative and hands-on curriculum. (Previous Plan/Not started)
B136: Number of students affected (0***3) | C136: 3 | D136: 1 | E136: 2 | F136: CIS | G136: Plan 5: Provide access to innovative and hands-on curriculum. (Previous Plan/Not started)
B137: Meets a safety or legislated mandate (0***3) | C137: 0 | D137: 0 | E137: N/A | F137: CIS | G137: Plan 5: Provide access to innovative and hands-on curriculum. (Previous Plan/Not started)
B138: Criticality of the request (0***3) | C138: 3 | D138: 3 | E138: 3 | F138: CIS | G138: Plan 5: Provide access to innovative and hands-on curriculum. (Previous Plan/Not started)
B139: Total (0***24) | C139: 17 | D139: 13 | E139: 16 | F139: CIS | G139: Plan 5: Provide access to innovative and hands-on curriculum. (Previous Plan/Not started)
A140: =C140 -> 15.33333333 | B140: Average: | C140: =AVERAGE(C139:E139) -> 15.33333333 | F140: CIS | G140: Plan 5: Provide access to innovative and hands-on curriculum. (Previous Plan/Not started)
F141: CIS | G141: Plan 5: Provide access to innovative and hands-on curriculum. (Previous Plan/Not started)
F142: CIS | G142: Plan 5: Provide access to innovative and hands-on curriculum. (Previous Plan/Not started)
F143: CIS | G143: Plan 5: Provide access to innovative and hands-on curriculum. (Previous Plan/Not started)
F144: CIS | G144: Plan 5: Provide access to innovative and hands-on curriculum. (Previous Plan/Not started)
B145: Reviewer | C145: Bob | D145: Amy | E145: Elder | F145: CIS | G145: Plan 6: Provide off-campus access to innovative instructional and assessment tools that support an equitable online learning environment and students’ obtainment of course and program learning outcomes in online classes. (Revised in progress plan)
B146: Alignment with an Institutional Goal or Institutional Objective (0***5) | C146: 5 | D146: 5 | E146: 5 | F146: CIS | G146: Plan 6: Provide off-campus access to innovative instructional and assessment tools that support an equitable online learning environment and students’ obtainment of course and program learning outcomes in online classes. (Revised in progress plan)
B147: Identified as a need based on assessment outcome(s) (0***5) | C147: 4 | D147: 5 | E147: 4 | F147: CIS | G147: Plan 6: Provide off-campus access to innovative instructional and assessment tools that support an equitable online learning environment and students’ obtainment of course and program learning outcomes in online classes. (Revised in progress plan)
B148: Ranking by Program Review Authors (0***5) | C148: 4 | D148: 5 | E148: 5 | F148: CIS | G148: Plan 6: Provide off-campus access to innovative instructional and assessment tools that support an equitable online learning environment and students’ obtainment of course and program learning outcomes in online classes. (Revised in progress plan)
B149: Number of students affected (0***3) | C149: 2 | D149: 2 | E149: 2 | F149: CIS | G149: Plan 6: Provide off-campus access to innovative instructional and assessment tools that support an equitable online learning environment and students’ obtainment of course and program learning outcomes in online classes. (Revised in progress plan)
B150: Meets a safety or legislated mandate (0***3) | C150: N/A | D150: 0 | E150: N/A | F150: CIS | G150: Plan 6: Provide off-campus access to innovative instructional and assessment tools that support an equitable online learning environment and students’ obtainment of course and program learning outcomes in online classes. (Revised in progress plan)
B151: Criticality of the request (0***3) | C151: N/A | D151: 2 | E151: 2 | F151: CIS | G151: Plan 6: Provide off-campus access to innovative instructional and assessment tools that support an equitable online learning environment and students’ obtainment of course and program learning outcomes in online classes. (Revised in progress plan)
B152: Total (0***24) | C152: 15 | D152: 18 | E152: 18 | F152: CIS | G152: Plan 6: Provide off-campus access to innovative instructional and assessment tools that support an equitable online learning environment and students’ obtainment of course and program learning outcomes in online classes. (Revised in progress plan)
A153: 17 | B153: Average: | C153: =AVERAGE(C152:E152) -> 17 | F153: CIS | G153: Plan 6: Provide off-campus access to innovative instructional and assessment tools that support an equitable online learning environment and students’ obtainment of course and program learning outcomes in online classes. (Revised in progress plan)
F154: CIS | G154: Plan 6: Provide off-campus access to innovative instructional and assessment tools that support an equitable online learning environment and students’ obtainment of course and program learning outcomes in online classes. (Revised in progress plan)
F155: CIS | G155: Plan 6: Provide off-campus access to innovative instructional and assessment tools that support an equitable online learning environment and students’ obtainment of course and program learning outcomes in online classes. (Revised in progress plan)
F156: CIS | G156: Plan 6: Provide off-campus access to innovative instructional and assessment tools that support an equitable online learning environment and students’ obtainment of course and program learning outcomes in online classes. (Revised in progress plan)
F157: CIS | G157: Plan 6: Provide off-campus access to innovative instructional and assessment tools that support an equitable online learning environment and students’ obtainment of course and program learning outcomes in online classes. (Revised in progress plan)
B158: Reviewer | C158: Kyle | D158: Ross | E158: Anibal | F158: Physical Science Comprehensive | G158: Plan 1: Explore a preparatory class for Chem 2
B159: Alignment with an Institutional Goal or Institutional Objective (0***5) | C159: 4 | D159: 4 | E159: 4 | F159: Physical Science Comprehensive | G159: Plan 1: Explore a preparatory class for Chem 2
B160: Identified as a need based on assessment outcome(s) (0***5) | C160: 4 | D160: 4 | E160: 4 | F160: Physical Science Comprehensive | G160: Plan 1: Explore a preparatory class for Chem 2
B161: Ranking by Program Review Authors (0***5) | C161: 5 | D161: 5 | E161: 5 | F161: Physical Science Comprehensive | G161: Plan 1: Explore a preparatory class for Chem 2
B162: Number of students affected (0***3) | C162: 1 | D162: 1 | E162: 1 | F162: Physical Science Comprehensive | G162: Plan 1: Explore a preparatory class for Chem 2
B163: Meets a safety or legislated mandate (0***3) | C163: 0 | D163: 0 | E163: 0 | F163: Physical Science Comprehensive | G163: Plan 1: Explore a preparatory class for Chem 2
B164: Criticality of the request (0***3) | C164: 1 | D164: 1 | E164: 1 | F164: Physical Science Comprehensive | G164: Plan 1: Explore a preparatory class for Chem 2
B165: Total (0***24) | C165: 15 | D165: 15 | E165: 15 | F165: Physical Science Comprehensive | G165: Plan 1: Explore a preparatory class for Chem 2
A166: 15 | B166: Average: | C166: =AVERAGE(C165:E165) -> 15 | F166: Physical Science Comprehensive | G166: Plan 1: Explore a preparatory class for Chem 2
F167: Physical Science Comprehensive | G167: Plan 1: Explore a preparatory class for Chem 2
F168: Physical Science Comprehensive | G168: Plan 1: Explore a preparatory class for Chem 2
F169: Physical Science Comprehensive | G169: Plan 1: Explore a preparatory class for Chem 2
F170: Physical Science Comprehensive | G170: Plan 1: Explore a preparatory class for Chem 2
B171: Reviewer | C171: Kyle | D171: Ross | E171: Anibal | F171: Physical Science Comprehensive | G171: Plan 2: Explore development of an associate degree for transfer in chemistry
B172: Alignment with an Institutional Goal or Institutional Objective (0***5) | C172: 4 | D172: 4 | E172: 4 | F172: Physical Science Comprehensive | G172: Plan 2: Explore development of an associate degree for transfer in chemistry
B173: Identified as a need based on assessment outcome(s) (0***5) | C173: 3 | D173: 2 | E173: 2 | F173: Physical Science Comprehensive | G173: Plan 2: Explore development of an associate degree for transfer in chemistry
B174: Ranking by Program Review Authors (0***5) | C174: 4 | D174: 4 | E174: 4 | F174: Physical Science Comprehensive | G174: Plan 2: Explore development of an associate degree for transfer in chemistry
B175: Number of students affected (0***3) | C175: 3 | D175: 3 | E175: 3 | F175: Physical Science Comprehensive | G175: Plan 2: Explore development of an associate degree for transfer in chemistry
B176: Meets a safety or legislated mandate (0***3) | C176: 0 | D176: 0 | E176: 0 | F176: Physical Science Comprehensive | G176: Plan 2: Explore development of an associate degree for transfer in chemistry
B177: Criticality of the request (0***3) | C177: 0 | D177: 0 | E177: 0 | F177: Physical Science Comprehensive | G177: Plan 2: Explore development of an associate degree for transfer in chemistry
B178: Total (0***24) | C178: 13 | D178: 13 | E178: 13 | F178: Physical Science Comprehensive | G178: Plan 2: Explore development of an associate degree for transfer in chemistry
A179: 13 | B179: Average: | C179: =AVERAGE(C178:E178) -> 13 | F179: Physical Science Comprehensive | G179: Plan 2: Explore development of an associate degree for transfer in chemistry
F180: Physical Science Comprehensive | G180: Plan 2: Explore development of an associate degree for transfer in chemistry
F181: Physical Science Comprehensive | G181: Plan 2: Explore development of an associate degree for transfer in chemistry
F182: Physical Science Comprehensive | G182: Plan 2: Explore development of an associate degree for transfer in chemistry
F183: Physical Science Comprehensive | G183: Plan 2: Explore development of an associate degree for transfer in chemistry
B184: Reviewer | C184: Kyle | D184: Ross | E184: Anibal | F184: Physical Science Comprehensive | G184: Plan 3: Explore the need to run fume hoods continuously
B185: Alignment with an Institutional Goal or Institutional Objective (0***5) | C185: 2 | D185: 2 | E185: 2 | F185: Physical Science Comprehensive | G185: Plan 3: Explore the need to run fume hoods continuously
B186: Identified as a need based on assessment outcome(s) (0***5) | C186: 1 | D186: 2 | E186: 3 | F186: Physical Science Comprehensive | G186: Plan 3: Explore the need to run fume hoods continuously
B187: Ranking by Program Review Authors (0***5) | C187: 2 | D187: 3 | E187: 3 | F187: Physical Science Comprehensive | G187: Plan 3: Explore the need to run fume hoods continuously
B188: Number of students affected (0***3) | C188: 1 | D188: 1 | E188: 1 | F188: Physical Science Comprehensive | G188: Plan 3: Explore the need to run fume hoods continuously
B189: Meets a safety or legislated mandate (0***3) | C189: 0 | D189: 0 | E189: 0 | F189: Physical Science Comprehensive | G189: Plan 3: Explore the need to run fume hoods continuously
B190: Criticality of the request (0***3) | C190: 1 | D190: 1 | E190: 1 | F190: Physical Science Comprehensive | G190: Plan 3: Explore the need to run fume hoods continuously
B191: Total (0***24) | C191: 7 | D191: 9 | E191: 10 | F191: Physical Science Comprehensive | G191: Plan 3: Explore the need to run fume hoods continuously
A192: 8.666666667 | B192: Average: | C192: =AVERAGE(C191:E191) -> 8.666666667 | F192: Physical Science Comprehensive | G192: Plan 3: Explore the need to run fume hoods continuously
F193: Physical Science Comprehensive | G193: Plan 3: Explore the need to run fume hoods continuously
F194: Physical Science Comprehensive | G194: Plan 3: Explore the need to run fume hoods continuously
F195: Physical Science Comprehensive | G195: Plan 3: Explore the need to run fume hoods continuously
F196: Physical Science Comprehensive | G196: Plan 3: Explore the need to run fume hoods continuously
B197: Reviewer | C197: Kyle | D197: Ross | E197: Anibal | F197: Physical Science Comprehensive | G197: Plan 4: Develop additional GE Science classes that can be offered at PB to expand offerings and open the door for students to earn the beneficial Science Exploration degree.
B198: Alignment with an Institutional Goal or Institutional Objective (0***5) | C198: 4 | D198: 4 | E198: 4 | F198: Physical Science Comprehensive | G198: Plan 4: Develop additional GE Science classes that can be offered at PB to expand offerings and open the door for students to earn the beneficial Science Exploration degree.
B199: Identified as a need based on assessment outcome(s) (0***5) | C199: 4 | D199: 4 | E199: 4 | F199: Physical Science Comprehensive | G199: Plan 4: Develop additional GE Science classes that can be offered at PB to expand offerings and open the door for students to earn the beneficial Science Exploration degree.
B200: Ranking by Program Review Authors (0***5) | C200: 2 | D200: 2 | E200: 2 | F200: Physical Science Comprehensive | G200: Plan 4: Develop additional GE Science classes that can be offered at PB to expand offerings and open the door for students to earn the beneficial Science Exploration degree.
... 113 more rows

Sheet Sheet2 (hidden)
A1: Criteria | B1: R1 | C1: R2 | D1: R3 | E1: Avg | F1: Program | G1: Plan and description
A2: Total (0***24) | B2: 19 | C2: 17 | D2: 18 | E2: 18 | F2: ECE Comprehensive Feedback Template 2024-25.docx | G2: Plan 1: Dedicate ECE classroom
A3: Total (0***24) | B3: 17 | C3: 17 | D3: 18 | E3: 17.33333333 | F3: ECE Comprehensive Feedback Template 2024-25.docx | G3: Plan 2: Strengthen ECE Partnerships
A4: Total (0***24) | B4: 10 | C4: 9 | D4: 12 | E4: 10.33333333 | F4: ECE Comprehensive Feedback Template 2024-25.docx | G4: Plan 3: Support current ECE instructors
A5: Total (0***24) | B5: 16 | C5: 15 | D5: 16 | E5: 15.66666667 | F5: ECE Comprehensive Feedback Template 2024-25.docx | G5: Plan 4: ECE Marketing
A6: Total (0***24) | B6: 16 | C6: 16 | D6: 15 | E6: 15.66666667 | F6: ECE Comprehensive Feedback Template 2024-25.docx | G6: Plan 5: OER Materials for ECE Classes
A7: Total (0***24) | B7: 12 | C7: 13 | D7: 14 | E7: 13 | F7: ECE Comprehensive Feedback Template 2024-25.docx | G7: Plan 6: Inform/Connect with Counseling about ECE
A8: Total (0***24) | B8: 16 | C8: 15 | D8: 15 | E8: 15.33333333 | F8: ECE Comprehensive Feedback Template 2024-25.docx | G8: Plan 7: Systematically inform students of deadlines/process related to graduation
A9: Total (0***24) | B9: 12 | C9: 0 | D9: 0 | E9: 12 | F9: Humanities Comprehensive Feedback Template 2024-25.docx | G9: Plan 1: Seek Course-to-Course articulation of SPAN 9 with CPH course
A10: Total (0***24) | B10: 10 | E10: 10 | F10: Humanities Comprehensive Feedback Template 2024-25.docx | G10: Plan 2: Align SPAN 1A online course with OEI rubric
A11: Total (0***24) | B11: 9 | E11: 9 | F11: Humanities Comprehensive Feedback Template 2024-25.docx | G11: Plan 3: Offer ENGL 36 as an online course.
A12: Total (0***24) | B12: 8 | E12: 8 | F12: Humanities Comprehensive Feedback Template 2024-25.docx | G12: Plan 4: Update ENGL 36 Course Outline of Record to adjust for the course to be co-taught
A13: Total (0***24) | B13: 12 | E13: 12 | F13: LVN Comprehensive Feedback Template 2024-25.docx | G13: Plan 1: We need to provide faculty development training to become certified as simulation specialist to one faculty member on each campus by fall 2024.
A14: Total (0***24) | B14: 11 | E14: 11 | F14: LVN Comprehensive Feedback Template 2024-25.docx | G14: Plan 2: Scheduler/Clinical Site Coordinator to help with scheduling due to the expanding number of students and the complexity of scheduling clinical sites. This person will also manage compliance requirements for each student at each clinical site.
A15: Total (0***24) | B15: 11 | E15: 11 | F15: LVN Comprehensive Feedback Template 2024-25.docx | G15: Plan 3: Solidify AV (telepresence/Zoom room) stability during lectures between Del Norte and Eureka.
A16: Total (0***24) | B16: 15 | E16: 15 | F16: LVN Comprehensive Feedback Template 2024-25.docx | G16: Plan 4: Increase ISS/SIM Tech hours from part time to full time on both campuses by 2024.
A17: Total (0***24) | B17: 19 | E17: 19 | F17: LVN Comprehensive Feedback Template 2024-25.docx | G17: Plan 5: Increase Lecture and Skills lab space for increased enrollment. First phase started Fall 2024. Spring 2025 we will double the Career mobility students at both the Eureka and Del Norte instructional sites.
A18: Total (0***24) | B18: 19 | E18: 19 | F18: Math Comprehensive Feedback Template 2024-25.docx | G18: Plan 1: Department has proposed a new data science program through the 4020 process. If recommended by PVC** then the program and courses (2) can be developed.
A19: Total (0***24) | B19: 17 | E19: 17 | F19: Math Comprehensive Feedback Template 2024-25.docx | G19: Plan 2: Re-assess the course caps for our online Math-15 and Math-16 courses and pedagogical innovation in related to online course instruction.
A20: Total (0***24) | B20: 22 | C20: 22 | E20: 22 | F20: Paramedic Comprehensive Feedback Template 2024-25.docx | G20: Plan 1: Response to accreditation site visit findings
A21: Total (0***24) | B21: 15 | C21: 14 | E21: 14.5 | F21: Paramedic Comprehensive Feedback Template 2024-25.docx | G21: Plan 2: Curriculum update
A22: Total (0***24) | B22: 6 | C22: 9 | E22: 7.5 | F22: Paramedic Comprehensive Feedback Template 2024-25.docx | G22: Plan 3: Move all course material online for succession and improve student access to learning materials.
A23: Total (0***24) | B23: 17 | C23: 17 | E23: 17 | F23: Paramedic Comprehensive Feedback Template 2024-25.docx | G23: Plan 4: Update equipment
A24: Total (0***24) | B24: 11 | C24: 10 | E24: 10.5 | F24: PSTC Comprehensive Feedback Template 2024-25.docx | G24: Plan 1: Modernize the training vehicle fleet.
A25: Total (0***24) | B25: 11 | C25: 9 | E25: 10 | F25: PSTC Comprehensive Feedback Template 2024-25.docx | G25: Plan 2: Acquire Air Purifying Respirators (APRs) for mandated training.
